fUSD/lending_fUSD_20240714
["ID","MTS","AMOUNT","RATE_DAILY","PERIOD"]
[332034672,1720939886223,-500.0,0.00013863,2]
[332034673,1720939886235,-879.38,0.00013863,2]
[332034674,1720939886244,-697.37,0.00013863,2]
[332034675,1720939886254,-500.0,0.00013863,2]
[332034676,1720939886263,-500.0,0.00013863,2]
[332034677,1720939886274,-500.0,0.00013863,2]
[332034678,1720939886283,-500.0,0.00013863,2]
[332034679,1720939886293,-608.73,0.00013863,2]
[332034680,1720939886302,-500.0,0.00013863,2]
[332034681,1720939886314,-500.0,0.00013863,2]
[332034682,1720939886324,-866.49,0.00013863,2]
[332034683,1720939886333,-500.0,0.00013863,2]
[332034684,1720939886343,-500.0,0.00013863,2]
[332034685,1720939886352,-500.0,0.00013863,2]
[332034686,1720939886361,-741.51,0.00013863,2]
[332034687,1720939886372,-500.0,0.00013863,2]
[332034688,1720939886382,-500.0,0.00013863,2]
[332034689,1720939886392,-513.62,0.00013863,2]
[332034690,1720939886401,-500.0,0.00013863,2]
[332034691,1720939886411,-500.0,0.00013863,2]
[332034692,1720939886420,-595.67,0.00013863,2]
[332034693,1720939886429,-500.0,0.00013863,2]
[332034694,1720939886439,-682.34,0.00013863,2]
[332034695,1720939886449,-500.0,0.00013863,2]
[332034696,1720939886459,-500.0,0.00013863,2]
[332034697,1720939886469,-500.0,0.00013863,2]
[332034698,1720939886479,-500.0,0.00013863,2]
[332034699,1720939886489,-500.0,0.00013863,2]
[332034700,1720939886498,-993.65,0.00013863,2]
[332034701,1720939886508,-500.0,0.00013863,2]
[332034702,1720939886517,-500.0,0.00013863,2]
[332034703,1720939886526,-500.0,0.00013863,2]
[332034704,1720939886536,-621.76,0.00013863,2]
[332034705,1720939886545,-500.0,0.00013863,2]
[332034706,1720939886555,-702.32,0.00013863,2]
[332034707,1720939886564,-506.29,0.00013863,2]
[332034708,1720939886575,-500.0,0.00013863,2]
[332034709,1720939886586,-500.0,0.00013863,2]
[332034710,1720939886596,-500.0,0.00013863,2]
[332034711,1720939886607,-989.06,0.00013863,2]
[332034712,1720939886616,-500.0,0.00013863,2]
[332034713,1720939886625,-500.0,0.00013863,2]
[332034714,1720939886635,-1484.95,0.00013863,2]
[332034715,1720939886645,-727.25,0.00013863,2]
[332034716,1720939886655,-500.0,0.00013863,2]
[332034717,1720939886665,-500.0,0.00013863,2]
[332034718,1720939886675,-500.0,0.00013863,2]
[332034719,1720939886685,-500.0,0.00013863,2]
[332034720,1720939886696,-516.29,0.00013863,2]
[332034721,1720939886706,-500.0,0.00013863,2]
[332034722,1720939886715,-886.25,0.00013863,2]
[332034723,1720939886725,-500.0,0.00013863,2]
[332034724,1720939886735,-500.0,0.00013863,2]
[332034725,1720939886745,-753.18,0.00013863,2]
[332034726,1720939886755,-500.0,0.00013863,2]
[332034727,1720939886764,-330.07796874,0.00013863,2]
[332034728,1720939886774,-500.0,0.00013863,2]
[332034729,1720939886784,-500.0,0.00013863,2]
[332034730,1720939886793,-751.76,0.00013863,2]
[332034731,1720939886803,-500.0,0.00013863,2]
[332034732,1720939886813,-524.67877836,0.00013863,2]
[332034733,1720939886823,-500.0,0.00013863,2]
[332034734,1720939886833,-512.02701064,0.00013863,2]
[332034735,1720939886844,-500.0,0.00013863,2]
[332034736,1720939886854,-1038.6,0.00013863,2]
[332034737,1720939886864,-500.0,0.00013863,2]
[332034738,1720939886876,-807.03,0.00013863,2]
[332034739,1720939886887,-500.0,0.00013863,2]
[332034740,1720939886900,-909.51,0.00013863,2]
[332034741,1720939886911,-500.0,0.00013863,2]
[332034742,1720939886923,-500.0,0.00013863,2]
[332034743,1720939886932,-500.0,0.00013863,2]
[332034744,1720939886942,-500.0,0.00013863,2]
[332034745,1720939886952,-500.0,0.00013863,2]
[332034746,1720939886963,-500.0,0.00013863,2]
[332034747,1720939886973,-500.0,0.00013863,2]
[332034748,1720939886983,-575.37,0.00013863,2]
[332034749,1720939886992,-500.0,0.00013863,2]
[332034750,1720939887002,-500.0,0.00013863,2]
[332034751,1720939887012,-500.0,0.00013863,2]
[332034752,1720939887022,-500.0,0.00013863,2]
[332034753,1720939887032,-500.0,0.00013863,2]
[332034754,1720939887042,-841.01,0.00013863,2]
[332034755,1720939887053,-699.75,0.00013863,2]
[332034756,1720939887063,-772.57,0.00013863,2]
[332034757,1720939887074,-500.0,0.00013863,2]
[332034758,1720939887084,-536.61,0.00013863,2]
[332034759,1720939887094,-500.0,0.00013863,2]
[332034760,1720939887103,-538.36,0.00013863,2]
[332034761,1720939887113,-520.61,0.00013863,2]
[332034762,1720939887123,-630.19,0.00013863,2]
[332034763,1720939887133,-500.0,0.00013863,2]
[332034764,1720939887143,-838.79,0.00013863,2]
[332034765,1720939887154,-500.0,0.00013863,2]
[332034766,1720939887164,-512.75,0.00013863,2]
[332034767,1720939887174,-500.0,0.00013863,2]
[332034768,1720939887185,-500.0,0.00013863,2]
[332034769,1720939887195,-1190.72,0.00013863,2]
[332034770,1720939887204,-531.12,0.00013863,2]
[332034771,1720939887214,-534.18,0.00013863,2]
[332034772,1720939887224,-500.0,0.00013863,2]
[332034773,1720939887237,-500.0,0.00013863,2]
[332034774,1720939887248,-765.65,0.00013863,2]
[332034775,1720939887258,-500.0,0.00013863,2]
[332034776,1720939887267,-517.58,0.00013863,2]
[332034777,1720939887279,-500.0,0.00013863,2]
[332034778,1720939887289,-500.0,0.00013863,2]
[332034779,1720939887299,-500.0,0.00013863,2]
[332034780,1720939887309,-500.0,0.00013863,2]
[332034781,1720939887318,-500.0,0.00013863,2]
[332034782,1720939887328,-564.84,0.00013863,2]
[332034783,1720939887337,-500.0,0.00013863,2]
[332034784,1720939887347,-504.84,0.00013863,2]
[332034785,1720939887356,-1034.64,0.00013863,2]
[332034786,1720939887366,-500.0,0.00013863,2]
[332034787,1720939887376,-500.0,0.00013863,2]
[332034788,1720939887386,-500.0,0.00013863,2]
[332034789,1720939887395,-500.0,0.00013863,2]
[332034790,1720939887405,-500.0,0.00013863,2]
[332034791,1720939887414,-500.0,0.00013863,2]
[332034792,1720939887424,-503.64,0.00013863,2]
[332034793,1720939887433,-500.0,0.00013863,2]
[332034794,1720939887443,-500.0,0.00013863,2]
[332034795,1720939887452,-500.0,0.00013863,2]
[332034796,1720939887462,-587.88946761,0.00013863,2]
[332034797,1720939887471,-561.31,0.00013863,2]
[332034798,1720939887481,-500.0,0.00013863,2]
[332034799,1720939887556,-581.12,0.00013863,2]
[332034800,1720939887566,-500.0,0.00013863,2]
[332034801,1720939887575,-500.0,0.00013863,2]
[332034802,1720939887584,-500.0,0.00013863,2]
[332034803,1720939887594,-500.0,0.00013863,2]
[332034804,1720939887603,-500.0,0.00013863,2]
[332034805,1720939887612,-912.75,0.00013863,2]
[332034806,1720939887621,-1459.97,0.00013863,2]
[332034807,1720939887630,-566.36941697,0.00013863,2]
[332034808,1720939887639,-500.0,0.00013863,2]
[332034809,1720939887649,-500.0,0.00013863,2]
[332034810,1720939887658,-500.0,0.00013863,2]
[332034811,1720939887667,-500.0,0.00013863,2]
[332034812,1720939887687,-847.08,0.00013863,2]
[332034813,1720939887696,-500.0,0.00013863,2]
[332034814,1720939887705,-1019.23,0.00013863,2]
[332034815,1720939887715,-730.45,0.00013863,2]
[332034816,1720939887724,-500.0,0.00013863,2]
[332034817,1720939887735,-500.0,0.00013863,2]
[332034818,1720939887744,-4533.09,0.00013863,2]
[332034819,1720939887753,-511.63,0.00013863,2]
[332034820,1720939887762,-407.25,0.00013863,2]
[332034821,1720939887772,-500.0,0.00013863,2]
[332034822,1720939887781,-500.0,0.00013863,2]
[332034823,1720939887790,-823.77,0.00013863,2]
[332034824,1720939887799,-500.0,0.00013863,2]
[332034825,1720939887809,-500.0,0.00013863,2]
[332034826,1720939887818,-500.0,0.00013863,2]
[332034827,1720939887827,-571.87,0.00013863,2]
[332034828,1720939887836,-599.44,0.00013863,2]
[332034829,1720939887845,-823.21,0.00013863,2]
[332034830,1720939887854,-500.0,0.00013863,2]
[332034831,1720939887863,-500.0,0.00013863,2]
[332034832,1720939887873,-4911.47,0.00013863,2]
[332034833,1720939887882,-500.0,0.00013863,2]
[332034834,1720939887891,-500.0,0.00013863,2]
[332034835,1720939887899,-1223.5,0.00013863,2]
[332034836,1720939887909,-500.0,0.00013863,2]
[332034837,1720939887918,-500.0,0.00013863,2]
[332034838,1720939887926,-500.0,0.00013863,2]
[332034839,1720939887936,-500.0,0.00013863,2]
[332034840,1720939887945,-727.75,0.00013863,2]
[332034841,1720939887955,-500.0,0.00013863,2]
[332034842,1720939887964,-500.0,0.00013863,2]
[332034843,1720939887974,-500.0,0.00013863,2]
[332034844,1720939887983,-500.0,0.00013863,2]
[332034845,1720939887992,-500.0,0.00013863,2]
[332034846,1720939888001,-500.0,0.00013863,2]
[332034847,1720939888011,-500.0,0.00013863,2]
[332034848,1720939888020,-500.0,0.00013863,2]
[332034849,1720939888029,-500.0,0.00013863,2]
[332034850,1720939888038,-500.0,0.00013863,2]
[332034851,1720939888048,-521.83573996,0.00013863,2]
[332034852,1720939888058,-500.0,0.00013863,2]
[332034853,1720939888068,-500.0,0.00013863,2]
[332034854,1720939888078,-500.0,0.00013863,2]
[332034855,1720939888088,-500.0,0.00013863,2]
[332034856,1720939888097,-500.0,0.00013863,2]
[332034857,1720939888106,-500.0,0.00013863,2]
[332034858,1720939888115,-696.2,0.00013863,2]
[332034859,1720939888124,-500.0,0.00013863,2]
[332034860,1720939888133,-500.0,0.00013863,2]
[332034861,1720939888144,-500.0,0.00013863,2]
[332034862,1720939888153,-500.0,0.00013863,2]
[332034863,1720939888163,-500.0,0.00013863,2]
[332034864,1720939888174,-500.0,0.00013863,2]
[332034865,1720939888185,-500.0,0.00013863,2]
[332034866,1720939888197,-500.0,0.00013863,2]
[332034867,1720939888206,-500.0,0.00013863,2]
[332034868,1720939888216,-500.0,0.00013863,2]
[332034869,1720939888227,-500.0,0.00013863,2]
[332034870,1720939888242,-500.0,0.00013863,2]
[332034871,1720939888253,-774.58,0.00013863,2]
[332034872,1720939888262,-500.0,0.00013863,2]
[332034873,1720939888271,-721.14,0.00013863,2]
[332034874,1720939888282,-500.0,0.00013863,2]
[332034875,1720939888292,-500.0,0.00013863,2]
[332034876,1720939888301,-549.63,0.00013863,2]
[332034877,1720939888311,-617.45,0.00013863,2]
[332034878,1720939888321,-602.57,0.00013863,2]
[332034879,1720939888330,-500.0,0.00013863,2]
[332034880,1720939888341,-645.55,0.00013863,2]
[332034881,1720939888351,-500.0,0.00013863,2]
[332034882,1720939888362,-500.0,0.00013863,2]
[332034883,1720939888372,-770.09,0.00013863,2]
[332034884,1720939888383,-500.0,0.00013863,2]
[332034885,1720939888392,-157.84661044,0.00013863,2]
[332034886,1720939888401,-500.0,0.00013863,2]
[332034887,1720939888411,-583.44,0.00013863,2]
[332034888,1720939888422,-500.0,0.00013863,2]
[332034889,1720939888432,-681.33,0.00013863,2]
[332034890,1720939888442,-500.0,0.00013863,2]
[332034891,1720939888453,-500.0,0.00013863,2]
[332034892,1720939888464,-538.45,0.00013863,2]
[332034893,1720939888474,-500.0,0.00013863,2]
[332034894,1720939888486,-500.0,0.00013863,2]
[332034895,1720939888495,-501.77,0.00013863,2]
[332034896,1720939888505,-500.0,0.00013863,2]
[332034897,1720939888515,-975.03,0.00013863,2]
[332034898,1720939888525,-513.28811361,0.00013863,2]
[332034899,1720939888536,-500.0,0.00013863,2]
[332034900,1720939888546,-772.65,0.00013863,2]
[332034901,1720939888555,-542.17,0.00013863,2]
[332034902,1720939888566,-500.0,0.00013863,2]
[332034903,1720939888576,-805.22,0.00013863,2]
[332034904,1720939888586,-500.0,0.00013863,2]
[332034905,1720939888596,-500.0,0.00013863,2]
[332034906,1720939888605,-500.0,0.00013863,2]
[332034907,1720939888615,-500.0,0.00013863,2]
[332034908,1720939888625,-813.22,0.00013863,2]
[332034909,1720939888635,-900.95,0.00013863,2]
[332034910,1720939888644,-500.0,0.00013863,2]
[332034911,1720939888653,-500.0,0.00013863,2]
[332034912,1720939888662,-612.90755974,0.00013863,2]
[332034913,1720939888671,-500.0,0.00013863,2]
[332034914,1720939888682,-500.0,0.00013863,2]
[332034915,1720939888692,-500.0,0.00013863,2]
[332034916,1720939888701,-1107.83,0.00013863,2]
[332034917,1720939888711,-500.0,0.00013863,2]
[332034918,1720939888721,-500.0,0.00013863,2]
[332034919,1720939888731,-649.60122937,0.00013863,2]
[332034920,1720939888740,-500.0,0.00013863,2]
[332034921,1720939888750,-500.0,0.00013863,2]
[332034922,1720939888758,-500.0,0.00013863,2]
[332034923,1720939888768,-500.0,0.00013863,2]
[332034924,1720939888778,-531.02981247,0.00013863,2]
[332034925,1720939888787,-500.0,0.00013863,2]
[332034926,1720939888797,-500.0,0.00013863,2]
[332034927,1720939888806,-500.0,0.00013863,2]
[332034928,1720939888815,-500.0,0.00013863,2]
[332034929,1720939888824,-500.0,0.00013863,2]
[332034930,1720939888833,-500.0,0.00013863,2]
[332034931,1720939888843,-500.0,0.00013863,2]
[332034932,1720939888852,-500.0,0.00013863,2]
[332034933,1720939888862,-500.0,0.00013863,2]
[332034934,1720939888871,-600.41,0.00013863,2]
[332034935,1720939888881,-505.3,0.00013863,2]
[332034936,1720939888890,-500.0,0.00013863,2]
[332034937,1720939888899,-728.77,0.00013863,2]
[332034938,1720939888908,-500.0,0.00013863,2]
[332034939,1720939888917,-500.0,0.00013863,2]
[332034940,1720939888926,-734.59,0.00013863,2]
[332034941,1720939888935,-630.94,0.00013863,2]
[332034942,1720939888945,-500.0,0.00013863,2]
[332034943,1720939888954,-279.04223468,0.00013863,2]
[332034944,1720939888963,-500.0,0.00013863,2]
[332034945,1720939888973,-529.33,0.00013863,2]
[332034946,1720939888982,-500.0,0.00013863,2]
[332034947,1720939888991,-500.0,0.00013863,2]
[332034948,1720939889000,-500.0,0.00013863,2]
[332034949,1720939889010,-1131.39,0.00013863,2]
[332034950,1720939889019,-543.23622269,0.00013863,2]
[332034951,1720939889028,-824.75,0.00013863,2]
[332034952,1720939889037,-500.0,0.00013863,2]
[332034953,1720939889047,-500.0,0.00013863,2]
[332034954,1720939889056,-697.54,0.00013863,2]
[332034955,1720939889065,-846.87,0.00013863,2]
[332034956,1720939889074,-640.02,0.00013863,2]
[332034957,1720939889083,-500.0,0.00013863,2]
[332034958,1720939889092,-500.0,0.00013863,2]
[332034959,1720939889101,-500.0,0.00013863,2]
[332034960,1720939889110,-500.0,0.00013863,2]
[332034961,1720939889119,-500.0,0.00013863,2]
[332034962,1720939889128,-500.0,0.00013863,2]
[332034963,1720939889137,-500.0,0.00013863,2]
[332034964,1720939889146,-500.0,0.00013863,2]
[332034965,1720939889155,-500.0,0.00013863,2]
[332034966,1720939889164,-533.44,0.00013863,2]
[332034967,1720939889173,-500.0,0.00013863,2]
[332034968,1720939889184,-500.0,0.00013863,2]
[332034969,1720939889193,-500.0,0.00013863,2]
[332034970,1720939889202,-500.0,0.00013863,2]
[332034971,1720939889212,-500.0,0.00013863,2]
[332034972,1720939889221,-1262.47,0.00013863,2]
[332034973,1720939889231,-500.0,0.00013863,2]
[332034974,1720939889243,-648.9,0.00013863,2]
[332034975,1720939889252,-500.0,0.00013863,2]
[332034976,1720939889261,-500.0,0.00013863,2]
[332034977,1720939889271,-500.0,0.00013863,2]
[332034978,1720939889281,-675.27,0.00013863,2]
[332034979,1720939889291,-500.0,0.00013863,2]
[332034980,1720939889301,-500.0,0.00013863,2]
[332034981,1720939889310,-1031.81,0.00013863,2]
[332034982,1720939889321,-500.0,0.00013863,2]
[332034983,1720939889331,-500.0,0.00013863,2]
[332034984,1720939889340,-526.43,0.00013863,2]
[332034985,1720939889349,-503.38,0.00013863,2]
[332034986,1720939889358,-500.0,0.00013863,2]
[332034987,1720939889367,-974.44,0.00013863,2]
[332034988,1720939889376,-1203.0,0.00013863,2]
[332034989,1720939889385,-611.34,0.00013863,2]
[332034990,1720939889394,-530.41,0.00013863,2]
[332034991,1720939889404,-709.84,0.00013863,2]
[332034992,1720939889413,-500.0,0.00013863,2]
[332034993,1720939889422,-500.0,0.00013863,2]
[332034994,1720939889432,-500.0,0.00013863,2]
[332034995,1720939889441,-500.0,0.00013863,2]
[332034996,1720939889451,-810.84,0.00013863,2]
[332034997,1720939889460,-500.0,0.00013863,2]
[332034998,1720939889470,-529.53,0.00013863,2]
[332034999,1720939889480,-500.0,0.00013863,2]
[332035000,1720939889490,-516.59,0.00013863,2]
[332035001,1720939889500,-500.0,0.00013863,2]
[332035002,1720939889510,-500.0,0.00013863,2]
[332035003,1720939889519,-500.0,0.00013863,2]
[332035004,1720939889528,-549.47,0.00013863,2]
[332035005,1720939889537,-500.0,0.00013863,2]
[332035006,1720939889547,-500.0,0.00013863,2]
[332035007,1720939889556,-1495.77,0.00013863,2]
[332035008,1720939889566,-500.0,0.00013863,2]
[332035009,1720939889575,-500.0,0.00013863,2]
[332035010,1720939889585,-661.28,0.00013863,2]
[332035011,1720939889595,-500.0,0.00013863,2]
[332035012,1720939889604,-500.0,0.00013863,2]
[332035013,1720939889613,-500.0,0.00013863,2]
[332035014,1720939889623,-500.0,0.00013863,2]
[332035015,1720939889633,-796.47,0.00013863,2]
[332035016,1720939889642,-500.0,0.00013863,2]
[332035017,1720939889652,-500.0,0.00013863,2]
[332035018,1720939889662,-500.0,0.00013863,2]
[332035019,1720939889671,-500.0,0.00013863,2]
[332035020,1720939889681,-1345.65,0.00013863,2]
[332035021,1720939889690,-500.0,0.00013863,2]
[332035022,1720939889700,-980.38,0.00013863,2]
[332035023,1720939889709,-1570.51,0.00013863,2]
[332035024,1720939889719,-506.72,0.00013863,2]
[332035025,1720939889730,-579.78448188,0.00013863,2]
[332035026,1720939889740,-500.0,0.00013863,2]
[332035027,1720939889750,-500.0,0.00013863,2]
[332035028,1720939889760,-511.92,0.00013863,2]
[332035029,1720939889769,-500.0,0.00013863,2]
[332035030,1720939889779,-500.0,0.00013863,2]
[332035031,1720939889788,-500.0,0.00013863,2]
[332035032,1720939889798,-500.0,0.00013863,2]
[332035033,1720939889807,-649.9,0.00013863,2]
[332035034,1720939889816,-500.0,0.00013863,2]
[332035035,1720939889826,-500.0,0.00013863,2]
[332035036,1720939889835,-500.0,0.00013863,2]
[332035037,1720939889844,-847.36,0.00013863,2]
[332035038,1720939889853,-500.0,0.00013863,2]
[332035039,1720939889863,-500.0,0.00013863,2]
[332035040,1720939889873,-500.0,0.00013863,2]
[332035041,1720939889882,-500.0,0.00013863,2]
[332035042,1720939889892,-5441.7,0.00013863,2]
[332035043,1720939889901,-500.0,0.00013863,2]
[332035044,1720939889911,-500.0,0.00013863,2]
[332035045,1720939889922,-500.0,0.00013863,2]
[332035046,1720939889931,-500.0,0.00013863,2]
[332035047,1720939889942,-500.0,0.00013863,2]
[332035048,1720939889952,-500.0,0.00013863,2]
[332035049,1720939889962,-500.0,0.00013863,2]
[332035050,1720939889973,-500.0,0.00013863,2]
[332035051,1720939889983,-500.0,0.00013863,2]
[332035052,1720939889994,-1680.79,0.00013863,2]
[332035053,1720939890004,-500.0,0.00013863,2]
[332035054,1720939890014,-2626.52,0.00013863,2]
[332035055,1720939890024,-500.0,0.00013863,2]
[332035056,1720939890034,-500.0,0.00013863,2]
[332035057,1720939890044,-2143.05,0.00013863,2]
[332035058,1720939890054,-500.0,0.00013863,2]
[332035059,1720939890063,-500.0,0.00013863,2]
[332035060,1720939890072,-711.67,0.00013863,2]
[332035061,1720939890082,-305.22675997,0.00013863,2]
[332035062,1720939890092,-1123.05,0.00013863,2]
[332035063,1720939890102,-500.0,0.00013863,2]
[332035064,1720939890112,-823.32,0.00013863,2]
[332035065,1720939890121,-500.0,0.00013863,2]
[332035066,1720939890132,-591.86,0.00013863,2]
[332035067,1720939890142,-500.0,0.00013863,2]
[332035068,1720939890152,-500.0,0.00013863,2]
[332035069,1720939890162,-500.0,0.00013863,2]
[332035070,1720939890172,-738.83,0.00013863,2]
[332035071,1720939890181,-500.0,0.00013863,2]
[332035072,1720939890191,-500.0,0.00013863,2]
[332035073,1720939890201,-2818.62,0.00013863,2]
[332035074,1720939890211,-966.88,0.00013863,2]
[332035075,1720939890221,-500.0,0.00013863,2]
[332035076,1720939890231,-500.0,0.00013863,2]
[332035077,1720939890244,-806.92,0.00013863,2]
[332035078,1720939890254,-518.44,0.00013863,2]
[332035079,1720939890264,-668.07,0.00013863,2]
[332035080,1720939890275,-200.07607093,0.00013863,2]
[332035081,1720939890284,-500.0,0.00013863,2]
[332035082,1720939890294,-500.0,0.00013863,2]
[332035083,1720939890304,-500.0,0.00013863,2]
[332035084,1720939890317,-500.0,0.00013863,2]
[332035085,1720939890326,-500.0,0.00013863,2]
[332035086,1720939890336,-701.44,0.00013863,2]
[332035087,1720939890345,-500.0,0.00013863,2]
[332035088,1720939890355,-500.0,0.00013863,2]
[332035089,1720939890365,-2055.49,0.00013863,2]
[332035090,1720939890375,-500.0,0.00013863,2]
[332035091,1720939890384,-500.0,0.00013863,2]
[332035092,1720939890395,-594.67,0.00013863,2]
[332035093,1720939890404,-684.26,0.00013863,2]
[332035094,1720939890414,-692.16,0.00013863,2]
[332035095,1720939890424,-478.70607371,0.00013863,2]
[332035096,1720939890434,-500.0,0.00013863,2]
[332035097,1720939890443,-500.0,0.00013863,2]
[332035098,1720939890453,-500.0,0.00013863,2]
[332035099,1720939890464,-500.0,0.00013863,2]
[332035100,1720939890474,-757.65,0.00013863,2]
[332035101,1720939890484,-500.0,0.00013863,2]
[332035102,1720939890495,-319.52894296,0.00013863,2]
[332035103,1720939890505,-836.16,0.00013863,2]
[332035104,1720939890515,-500.0,0.00013863,2]
[332035105,1720939890525,-659.59,0.00013863,2]
[332035106,1720939890535,-512.99832587,0.00013863,2]
[332035107,1720939890544,-903.47,0.00013863,2]
[332035108,1720939890554,-500.0,0.00013863,2]
[332035109,1720939890563,-500.0,0.00013863,2]
[332035110,1720939890573,-1129.86,0.00013863,2]
[332035111,1720939890583,-500.0,0.00013863,2]
[332035112,1720939890593,-753.64,0.00013863,2]
[332035113,1720939890603,-728.14,0.00013863,2]
[332035114,1720939890613,-500.0,0.00013863,2]
[332035115,1720939890623,-500.0,0.00013863,2]
[332035116,1720939890634,-1318.94,0.00013863,2]
[332035117,1720939890644,-500.0,0.00013863,2]
[332035118,1720939890654,-500.0,0.00013863,2]
[332035119,1720939890664,-617.09,0.00013863,2]
[332035120,1720939890674,-500.0,0.00013863,2]
[332035121,1720939890684,-524.43,0.00013863,2]
[332035122,1720939890694,-937.67,0.00013863,2]
[332035123,1720939890703,-604.14,0.00013863,2]
[332035124,1720939890714,-547.80345865,0.00013863,2]
[332035125,1720939890723,-2520.05,0.00013863,2]
[332035126,1720939890734,-500.0,0.00013863,2]
[332035127,1720939890744,-502.52,0.00013863,2]
[332035128,1720939890754,-565.6,0.00013863,2]
[332035129,1720939890764,-500.0,0.00013863,2]
[332035130,1720939890774,-640.94,0.00013863,2]
[332035131,1720939890784,-500.0,0.00013863,2]
[332035132,1720939890795,-500.0,0.00013863,2]
[332035133,1720939890805,-500.0,0.00013863,2]
[332035134,1720939890815,-521.47,0.00013863,2]
[332035135,1720939890824,-500.0,0.00013863,2]
[332035136,1720939890834,-500.0,0.00013863,2]
[332035137,1720939890844,-500.0,0.00013863,2]
[332035138,1720939890854,-500.0,0.00013863,2]
[332035139,1720939890863,-1136.32,0.00013863,2]
[332035140,1720939890873,-545.4,0.00013863,2]
[332035141,1720939890883,-500.0,0.00013863,2]
[332035142,1720939890892,-500.0,0.00013863,2]
[332035143,1720939890902,-500.0,0.00013863,2]
[332035144,1720939890912,-500.0,0.00013863,2]
[332035145,1720939890922,-500.0,0.00013863,2]
[332035146,1720939890931,-927.24,0.00013863,2]
[332035147,1720939890941,-534.21,0.00013863,2]
[332035148,1720939890952,-500.0,0.00013863,2]
[332035149,1720939890963,-500.0,0.00013863,2]
[332035150,1720939890973,-500.0,0.00013863,2]
[332035151,1720939890983,-588.65,0.00013863,2]
[332035152,1720939890993,-500.0,0.00013863,2]
[332035153,1720939891003,-788.49,0.00013863,2]
[332035154,1720939891013,-1952.54,0.00013863,2]
[332035155,1720939891023,-500.0,0.00013863,2]
[332035156,1720939891033,-500.0,0.00013863,2]
[332035157,1720939891042,-500.0,0.00013863,2]
[332035158,1720939891052,-500.0,0.00013863,2]
[332035159,1720939891062,-500.0,0.00013863,2]
[332035160,1720939891072,-500.0,0.00013863,2]
[332035161,1720939891082,-500.0,0.00013863,2]
[332035162,1720939891092,-949.15,0.00013863,2]
[332035163,1720939891103,-635.96,0.00013863,2]
[332035164,1720939891113,-500.0,0.00013863,2]
[332035165,1720939891123,-500.0,0.00013863,2]
[332035166,1720939891133,-500.0,0.00013863,2]
[332035167,1720939891143,-644.99,0.00013863,2]
[332035168,1720939891153,-500.0,0.00013863,2]
[332035169,1720939891163,-500.0,0.00013863,2]
[332035170,1720939891174,-500.0,0.00013863,2]
[332035171,1720939891183,-500.0,0.00013863,2]